Cogmind - Beta 13 @@@ ROGUE MODE // 2024.04.14 @ 11:16:01 Player: Morphaana Result: Self-destructed Performance ------------- Evolutions (1) 500 Regions Visited (3) 600 Robots Destroyed (32) 160 Value Destroyed (667) 667 Prototype IDs (1) 20 Alien Tech Used (0) 0 Bonus (0) 0 TOTAL SCORE: 1947 Bonus ------- None Cogmind --------- Core Integrity 137/400 Matter 258/300 Energy 100/100 System Corruption 0% Temperature Cool (6) Movement Treading (160) Location -9/Materials Parts ------- > --- POWER (1) -------- (None) > --- PROPULSION (2) --- Light Treads > --- UTILITY (4) ------ Large Storage Unit Signal Interpreter > --- WEAPON (2) ------- (None) > --- INVENTORY (15) --- Light Nuclear Core Aluminum Leg Improved Flight Unit Improved Flight Unit Improved Flight Unit Improved Flight Unit Medium Storage Unit Medium Storage Unit Structural Scanner Hacking Suite Peak State ------------ > --- POWER ------------ Light Ion Engine > --- PROPULSION ------- Aluminum Leg Carbon-fiber Leg > --- UTILITY ---------- Large Storage Unit Sensor Array Signal Interpreter Medium Armor Plating > --- WEAPON ----------- Light Assault Rifle Light Assault Rifle > --- INVENTORY -------- Light Ion Engine Aluminum Leg Aluminum Leg Improved Flight Unit Improved Flight Unit Improved Flight Unit Improved Flight Unit Medium Storage Unit Structural Scanner Hacking Suite Rocket Launcher [Rating: 14] Favorites ----------- Power Ion Engine Engine Ion Engine Propulsion Aluminum Leg Treads Light Treads Leg Aluminum Leg Flight Unit Improved Flight Unit Utility Large Storage Unit Device Sensor Array Storage Large Storage Unit Processor Signal Interpreter Protection Light Armor Plating Weapon Assault Rifle Energy Gun Beam Rifle Ballistic Gun Assault Rifle Launcher Rocket Launcher Build | -11 -10 -10 -9 ------- Run | Yrd Mat Min Mat Slots Evolved 2 | . . . 2 Power . | . . . . Propulsion . | . . . . Utility 2 | . . . 2 Weapon . | . . . . Parts Attached 43 | 6 13 11 13 Power 5 | 1 1 1 2 Engine 5 | 1 1 1 2 Core . | . . . . Reactor . | . . . . Propulsion 12 | 2 6 1 3 Treads 6 | 2 3 . 1 Leg 5 | . 2 1 2 Wheel . | . . . . Hover . | . . . . Flight 1 | . 1 . . Utility 11 | 1 5 . 5 Device 3 | . 1 . 2 Storage 3 | 1 2 . . Processor 1 | . 1 . . Hackware . | . . . . Protection 4 | . 1 . 3 Artifact . | . . . . Weapon 15 | 2 1 9 3 Energy Gun 1 | . . . 1 Energy Cannon . | . . . . Ballistic Gun 10 | 2 1 6 1 Ballistic Cannon . | . . . . Launcher 4 | . . 3 1 Special Weapon . | . . . . Impact Weapon . | . . . . Slashing Weapon . | . . . . Piercing Weapon . | . . . . Special Melee Weapon . | . . . . Unidentified Prototypes 1 | . 1 . . Parts Lost 17 | . . 3 14 Power 4 | . . 1 3 Propulsion 3 | . . . 3 Utility 4 | . . . 4 Weapon 6 | . . 2 4 Highest Loss Streak 7 | . . 1 7 To Critical Strikes . | . . . . Average Slot Usage (%) 91 | . 95 92 81 Engine 12 | . 14 14 7 Treads 7 | . 16 . 1 Leg 18 | . 11 28 16 Device 2 | . 2 . 7 Storage 13 | . 14 14 11 Processor 8 | . 3 14 11 Protection 2 | . 3 . 5 Ballistic Gun 23 | . 27 20 19 Naked Turns . | . . . . Heaviest Build 33 | 14 30 31 33 Greatest Support 40 | 40 40 25 25 Greatest Overweight (x) 10 | 1 3 1 10 Average Overweight (x) . | . . . 1 Largest Inventory Capacity 15 | 8 15 15 15 Average Capacity 13 | 7 11 15 15 Most Carried 15 | . 15 15 12 Average Carried 10 | . 7 13 10 Final Capacity 15 | 8 15 15 15 Final Carried 15 | . 15 12 10 Class Distribution -------------------- 76% | Mutant 22% | Scavenger-Mutant Dominant Class ---------------- Mutant | -10/Materials Mutant | -10/Mines Scavenger-Mutant | -9/Materials Resources | -11 -10 -10 -9 ----------- Run | Yrd Mat Min Mat Matter Collected 1026 | 238 341 183 264 Remotely . | . . . . Salvage Created 780 | . 420 82 278 Parts 67 | . 37 12 18 Haulers Intercepted 1 | . . . 1 Recyclers Shooed . | . . . . Parts Field Recycled . | . . . . Retrieved Matter . | . . . . Parts Self-Destructed . | . . . . Prevented . | . . . . Kills | -11 -10 -10 -9 ------- Run | Yrd Mat Min Mat Combat Hostiles Destroyed 27 | . 13 8 6 Guns 22 | . 13 4 5 AOE 5 | . . 4 1 Classes Destroyed 7 | . 4 . 3 Worker 1 | . . . 1 Hauler 1 | . . . 1 Operator 1 | . 1 . . Watcher 2 | . 2 . . Swarmer 14 | . 6 8 . Grunt 12 | . 7 . 5 Sentry 1 | . . . 1 Best Kill Streak 3 | . 3 3 2 Combat Bots Only 3 | . 3 3 2 Max Kills in Single Turn 2 | . 1 2 2 Gunslinging . | . . . . Exploded 2 | . . 2 1 Melee . | . . . . Uniques/NPCs Destroyed . | . . . . Combat | -11 -10 -10 -9 -------- Run | Yrd Mat Min Mat Hostile Shots Fired 307 | . 91 51 165 Missed 83 | . 27 13 43 Damage Taken 2144 | . 601 291 1252 Core 421 | . 100 58 263 Absorbed by Shields . | . . . . Regen/Repaired (Parts) 12 | . 12 . . Core Remaining (%) 68 | 100 . 36 . Volleys Fired 138 | . 50 19 69 Largest 2 | . 2 2 2 Hottest 76 | . 40 40 76 Shots Fired 239 | . 100 26 113 Gun 233 | . 100 21 112 Cannon . | . . . . Launcher 6 | . . 5 1 Special . | . . . . Kinetic 225 | . 100 21 104 Thermal 8 | . . . 8 Explosive 6 | . . 5 1 Electromagnetic . | . . . . Robot Hit Streak 16 | . 9 5 16 Robot Miss Streak 4 | . 3 4 4 Penetration Max . | . . . . Secondary Targets 2 | . . . 2 Max Gunslinging Chain 1 | . . . 1 Shots Hit Robots 144 | . 61 9 74 Core Hits 54 | . 23 8 23 Critical Kills . | . . . . Critical Parts Destroyed 1 | . . . 1 Critical Strikes 1 | . . . 1 Destroy 1 | . . . 1 Melee Attacks . | . . . . Impact . | . . . . Slashing . | . . . . Piercing . | . . . . Sneak Attacks . | . . . . Combat Hostiles . | . . . . Follow-up Attacks . | . . . . Damage Inflicted 2135 | . 781 397 957 Guns 1566 | . 781 90 695 Cannons . | . . . . Explosions 568 | . . 306 262 Melee . | . . . . Ramming 1 | . . 1 . Kinetic 1479 | . 781 90 608 Thermal 87 | . . . 87 Explosive 568 | . . 306 262 Electromagnetic . | . . . . Impact . | . . . . Slashing . | . . . . Piercing . | . . . . Highest Corruption 2 | . 2 2 . Average Corruption 2 | . 2 2 . Corruption Purged . | . . . . Corruption Blocked . | . . . . Effects 16 | . . 16 . Message Errors 3 | . . 3 . Matter Fused 6 | . . 6 . Heat Flow Errors 1 | . . 1 . Energy Discharges 2 | . . 2 . Parts Fused 1 | . . 1 . Data Loss (minor) 1 | . . 1 . Data Loss (major) 1 | . . 1 . Misfires 1 | . . 1 . Overload Shots . | . . . . Overflow Damage . | . . . . Projectiles . | . . . . Explosions . | . . . . Melee . | . . . . Knockbacks . | . . . . Impact . | . . . . Kinetic . | . . . . Secondary . | . . . . Self-Inflicted Damage . | . . . . Shots . | . . . . Rammed . | . . . . Targets Rammed 1 | . . 1 . Kicked 1 | . . 1 . Crushed . | . . . . Highest Temperature 138 | . 2 110 138 Average Temperature 30 | . 2 62 33 Received Heat Transfer 645 | . 180 . 465 Siege Activations . | . . . . Robots Corrupted . | . . . . Combat Hostiles . | . . . . Parts Fried . | . . . . Impact Corruptions . | . . . . Robots Melted . | . . . . Combat Hostiles . | . . . . Parts Melted 1 | . . . 1 Heat Transferred 222 | . . . 222 Parts Sabotaged . | . . . . Parts Stolen . | . . . . Parts Stripped . | . . . . Power Chain Reactions . | . . . . Alert | -11 -10 -10 -9 ------- Run | Yrd Mat Min Mat Peak Influence 222 | . 222 152 119 Initial . | . . . . Average 65 | . 95 45 39 Maximum Alert Level 1 | . 1 . . Low Security (%) 98 | 100 95 100 100 Level 1 1 | . 4 . . Level 2 . | . . . . Level 3 . | . . . . Level 4 . | . . . . Level 5 . | . . . . High Security . | . . . . Max Security . | . . . . Squads Dispatched 5 | . 3 . 2 Investigation 2 | . 2 . . Extermination . | . . . . Reinforcement 3 | . 1 . 2 Assault . | . . . . Garrison . | . . . . Intercept . | . . . . Searches Triggered . | . . . . Construction Impeded 1 | . . . 1 Haulers Reinforced . | . . . . Active Scanning Responses . | . . . . Cargo Convoy Interrupts . | . . . . Stealth | -11 -10 -10 -9 --------- Run | Yrd Mat Min Mat Distress Signals 4 | . 1 . 3 Communications Jammed . | . . . . Distress Signals . | . . . . Times Spotted 46 | . 24 8 14 Peak Tracking Total 5 | . 4 3 5 Tactical Retreats 4 | . 2 . 2 Traps | -11 -10 -10 -9 ------- Run | Yrd Mat Min Mat Traps Triggered 3 | . 3 . . Indirectly . | . . . . Trap Hack Attempts . | . . . . Triggered . | . . . . Disarmed . | . . . . Reprogrammed . | . . . . Reused . | . . . . Traps Extracted . | . . . . Installed . | . . . . Triggered . | . . . . Machines | -11 -10 -10 -9 ---------- Run | Yrd Mat Min Mat Machines Disabled 1 | . . . 1 Max in Single Turn 1 | . . . 1 Machines Repaired . | . . . . Machines Dismantled . | . . . . Machines Sabotaged . | . . . . Overloaded Fab Kills . | . . . . Hacking | -11 -10 -10 -9 --------- Run | Yrd Mat Min Mat Machines Accessed 6 | . 5 . 1 Terminals 2 | . 2 . . Fabricators . | . . . . Repair Stations 1 | . 1 . . Recycling Units 3 | . 2 . 1 Scanalyzers . | . . . . Garrison Access . | . . . . Total Hacks 20 | . 17 . 3 Successful 14 | . 12 . 2 Failed 6 | . 5 . 1 Catastrophic 1 | . 1 . . Database Lockouts . | . . . . Manual 5 | . 5 . . Terminals 7 | . 7 . . Fabricators . | . . . . Repair Stations 6 | . 6 . . Recycling Units 7 | . 4 . 3 Scanalyzers . | . . . . Garrison Access . | . . . . Terminal Hacks 1 | . 1 . . Hauler Manifests 1 | . 1 . . Fabricator Hacks . | . . . . Repair Station Hacks 5 | . 5 . . Scan Component 3 | . 3 . . Repair 2 | . 2 . . Recycling Unit Hacks 6 | . 4 . 2 Process 1 | . 1 . . Report Inventory 3 | . 2 . 1 Retrieve Matter 1 | . 1 . . Retrieve Components 1 | . . . 1 Scanalyzer . | . . . . Garrison Access Hacks . | . . . . Unauthorized Hacks 2 | . 2 . . Terminals 2 | . 2 . . Botnet 2 | . 2 . . Fabricators . | . . . . Repair Stations . | . . . . Recycling Units . | . . . . Scanalyzers . | . . . . Garrison Access . | . . . . Data Cores Recovered . | . . . . Used . | . . . . Hacking Detections 4 | . 3 . 1 Full Trace Events 2 | . 2 . . Feedback Events . | . . . . Feedback Blocked . | . . . . Robot Schematics Acquired . | . . . . Robots Built . | . . . . Authchips . | . . . . Time . | . . . . Total Robot Build Rating . | . . . . Part Schematics Acquired . | . . . . Parts Built . | . . . . Authchips . | . . . . Time . | . . . . Total Part Build Rating . | . . . . Parts Repaired 2 | . 2 . . Time 52 | . 52 . . Parts Recycled . | . . . . Recycled Matter 44 | . 44 . . Retrieved Matter 44 | . 44 . . Retrieved Components 3 | . . . 3 Parts Scanalyzed . | . . . . Part Schematics Acquired . | . . . . Parts Damaged . | . . . . Bothacking | -11 -10 -10 -9 ------------ Run | Yrd Mat Min Mat Used RIF Installer . | . . . . Robots Hacked . | . . . . Non-combat . | . . . . Combat . | . . . . Robot Hacks Applied . | . . . . Relay Couplers Released . | . . . . Fabnet Peak Effective % . | . . . . Robots Rewired . | . . . . Allies Hacked . | . . . . Hacks Repelled . | . . . . Allies | -11 -10 -10 -9 -------- Run | Yrd Mat Min Mat Total Allies . | . . . . Largest Group . | . . . . Highest-Rated Group . | . . . . Highest-Rated Ally . | . . . . Total Orders . | . . . . Ally Attacks . | . . . . Total Damage . | . . . . Kills . | . . . . Allies Corrupted . | . . . . Allies Melted . | . . . . Intel | -11 -10 -10 -9 ------- Run | Yrd Mat Min Mat Robot Analysis Total . | . . . . Derelict Logs Recovered 1 | . . 1 . Drone Launches . | . . . . Drone Recoveries . | . . . . Exploration | -11 -10 -10 -9 ------------- Run | Yrd Mat Min Mat Turns Passed 2796 | 62 1256 968 510 Spaces Moved 1373 | 39 601 582 151 Core 10 | 8 1 . 1 Treads 380 | 31 331 . 18 Legs 983 | . 269 582 132 Wheels . | . . . . Hover . | . . . . Flight . | . . . . Fastest Speed 50 | 50 120 120 120 Average Speed 164 | 140 169 153 194 Slowest Speed 550 | 160 200 190 550 Overloaded Moves . | . . . . Propulsion Burnouts . | . . . . Robots Hopped . | . . . . Cave-ins Triggered . | . . . . Exploration Rate (%) 48 | 3 82 95 14 Regions Visited 3 Branch Regions 1 Pre-discovered Areas 1 | . . 1 . Known Exits Taken 2 | . 1 1 . Unknown Exits Taken 1 | 1 . . . Scrap Searched 1 | . . 1 . Spaces Dug 22 | . . 22 . Terrain Destroyed 51 | . . 42 9 Melee . | . . . . Projectile . | . . . . AOE 51 | . . 42 9 Terrain Rammed . | . . . . Walls Destroyed . | . . . . Machines Disabled . | . . . . Actions | -11 -10 -10 -9 --------- Run | Yrd Mat Min Mat Total 1686 | 44 737 634 271 Wait 92 | . 49 12 31 Move 1370 | 38 600 581 151 Hop . | . . . . Pick Up 25 | . 18 3 4 Fast Attach 19 | 6 7 . 6 Attach 14 | . . 7 7 Detach 5 | . 1 3 1 Swap 10 | . 6 4 . Drop 12 | . 6 4 2 Fire 138 | . 50 19 69 Melee . | . . . . Ram . | . . . . Kick 1 | . . 1 . Crush . | . . . . Escape Stasis . | . . . . Rewire . | . . . . Trap . | . . . . Miscellaneous . | . . . . Route ------- -11/Scrapyard -10/Materials (discovered 3 exits: *Mat x2 / *Min) -10/Mines (discovered 2 exits: *Mat / *Sub) -9/Materials History --------- Turn | Location | Event 3 | -11/Scrapyard | Discovered new exit (range 15) 63 | -11/Scrapyard | Entered Materials 249 | -10/Materials | Discovered new exit (range 3) 305 | -10/Materials | Build established: Mutant 366 | -10/Materials | Repaired Lgt. Armor Plating 392 | -10/Materials | Repaired Signal Interpreter 715 | -10/Materials | Discovered new exit (range 6) 1099 | -10/Materials | Discovered new exit (range 15) 1126 | -10/Materials | Identified exit to Materials 1314 | -10/Materials | Identified exit to Mines 1319 | -10/Materials | Entered Mines 1359 | -10/Mines | Received a Rocket Launcher from a helpful Derelict 1376 | -10/Mines | Met a Derelict bent on vengeance 1625 | -10/Mines | Discovered exit to Materials (range 11) 1677 | -10/Mines | Learned location of Recycling (-8) 1906 | -10/Mines | Core integrity fell below 50% 1959 | -10/Mines | Discovered new exit (range 4) 1961 | -10/Mines | Identified exit to Subcaves 2287 | -10/Mines | Entered Materials 2287 | -9/Materials | Evolved 2 slots: Utility x2 2613 | -9/Materials | Build established: Scavenger-Mutant 2636 | -9/Materials | Lost 7 parts (2p1n2u2w) 2744 | -9/Materials | Core integrity fell below 50% 2797 | -9/Materials | Self-destructed Last Messages --------------- unit. Recycling unit begins recycling process. O-16 Technician: "IFF HANDSHAKE FAILED. SECURING TERMINAL." O-16 Technician sends out distress signal. ALERT: Hostiles spotted, dispatching reinforcements to Terminal M003. G-34 Mercenary destroyed. Acquired Ion Engine. Acquired 34 matter. K-01 Serf collects debris. A-02 Transporter sends out distress signal. Carbon-fiber Leg destroyed. K-01 Serf collects debris. Hvy. Assault Rifle destroyed. Ion Engine destroyed. R-06 Scavenger collects Aluminum Leg. Lgt. Assault Rifle destroyed. Lgt. Armor Plating destroyed. Acquired 14 matter. Map ----- +----------------------------------------------------+ | ?????????????????????????????????????????????????? | | ?????????????????????????????????????????????????? | | ?????????????????????????????????????????????????? | | ?????????????????????????????????????????????????? | | ?????????????????????????????????????????????????? | | ?????????????????????????????????????????????????? | | ????????????????##???????????????????????????????? | | ????????????????# ???????????????????????????????? | | ???????????# ???# "??????????????????????????????? | | ???????????# ??+ "??????????????????????????????? | | ???????????# ??# ??????????????????????????????? | | ???????????# ?? ??????????????????????????????? | | ??????????## #? ??????????????????????????????? | | ??????????? ##+###???????????????????????????? | | ???????????? #???????????????????????????? | | ?????????????? k #????###########????????????? | | ???????????????? #????# #????????????? | | ?????????????????# #????# #????????????? | | ?????????????????# ###### """ """ #????????????? | | ?????????????????# k # """ """ #????????????? | | ?????????????????# + """ """ #????????????? | | ?????????????????# m # #????????????? | | ?????????????????## ###g#s# #????????????? | | ??????????????????# ## g # #????????????? | | ??????????????????# ##! ######+####????????????? | | ??????????????????# ## @ " #?# #???????????????? | | ??????????????????# ##% %"""#?#!#???????????????? | | ??????????????????# ## S"#?#=#???????????????? | | ??????????????????# ##"" !####?#[#???????????? ? | | ??????????????????? ?#"Y #????#[#???????????? # | | ??????????????????? ?#"" #????#[#???????????? | | ??????????????????? ?# #????# #???????????? | | ??????????????????? ?# ####????#[#???????????? | | ??????????????????? ?##????????#[#???????????? | | ??????????????????? ???????????#[#???????????? | | ??????????????????? ???????????# #???????????# | | ???????????????????????????????#!#???????????# # | | ???????????????????????????????# #???????????# # | | ????????????????????##########?# #???????????# # | | ????????????????????# #?# #???????????# # | | ????????????????????# #?# #???????????# # | | ????????????????????# ### ##??????????# + | | ????????????????????# ## ############ # | | ????????????????????+ + * # | | ????????????????????# ## ###########+#### | | ????????????????????# ## #?????## ## | | ????????????????????# ## #?????## """ ## | | ????????????????????# ## #????? # "Y" ## | | ????????????????????########### #????? # ] ## | | ??????????????????????????????# #????? # !! ## | +----------------------------------------------------+ Best States ------------- Heat Dissipation 28 Energy Generation 10 Energy Capacity 250 Matter Stores 300 Matter Capacity 300 Sight Range 16 Robot Scan Range 14 Terrain Scan Density 10 Armor Coverage 225 Evasion (%) 55 Recoil Reduction 2 Item Schematics ----------------- None Robot Schematics ------------------ None Fabricated ------------ Nothing Alien Tech Used ----------------- None Achievements -------------- None Challenges ------------ None Game ------ Seed MappingRagnarokBroadsword Manual? 0 Play Time 00:33:31 Cumulative 7.3 hours Start 2024.04.14 @ 10:37:59 End 2024.04.14 @ 11:16:01 Sessions 1 Manual Loads 0 Difficulty Rogue Special Mode None Game No. 8 Rogue 8 Adventurer 0 Explorer 0 Win Type - Total 0 Types 0/0/0/0/0/0/0/0/0 Lore% 1 Gallery% 8 Achievement% 12 Wizard Run 0 Options --------- Layout 1 ASCII 0 Keyboard 0 Movement Mouse Keybinds 0 Fullscreen 1 Font 16/SmallcapsGlow Map View 50x35 Zoom Use 0% Tactical HUD 0 Map Filters NONE Filters NONE Steam SD RUN: 56eac28a-77ed-4d1b-9fcb-8f50ab912462